{"text_format":"2","workbook":"xlsx","n_sheets":1,"sheets":["lager_2023-12-22T14 59 08.737Z"],"not_rendered":{"charts":0,"images":0,"macros":0,"external_links":0,"defined_names":0,"comments":0,"pivot_tables":0},"unopened":[],"bounds":{"document_bytes":16777216,"sheet_cells":100000,"run_cost":"one","rows_first":2000,"rows_last":500,"rows_between":2000,"halvings":0,"cell_chars":16384,"cell_head_chars":4096},"cells_cut":0,"cells_raw":0,"read":"whole","date_system":"1900"}

{"sheet":"lager_2023-12-22T14 59 08.737Z","index":0,"n_rows":120,"n_cols":9,"rows_kept":120,"cut":false,"hidden":false,"merged":[[94,0,94,9],[105,0,105,9],[2,0,2,9],[12,0,12,9],[51,0,51,9],[65,0,65,9],[74,0,74,9]]}
["Preisliste Silvesterverkauf 2023"]
[]
["Anzündmittel"]
["Anzahl \nBestellung","Name","Hersteller","Preis VK\ninkl. 19% MwSt.","Summe","NEM [g]","Lagergruppe","Kategorie","Video"]
[null,"Anzünder 100cm / 50 Stück","Blackboxx",40,{"$f":"Tabelle9[[#This Row],[Preis VK\ninkl. 19% MwSt.]]*Tabelle9[[#This Row],[Anzahl \nBestellung]]","v":0},8,"1.4 S","P1"]
[null,"Anzündlitze Gelb 18-28 s/m","Wano",15,{"$f":"Tabelle9[[#This Row],[Preis VK\ninkl. 19% MwSt.]]*Tabelle9[[#This Row],[Anzahl \nBestellung]]","v":0},38,"1.4 G","P1","https://www.youtube.com/watch?v=Z2K4GZMnpX8"]
[null,"Anzündlitze Rot 8-12 s/m","Wano",15,{"$f":"Tabelle9[[#This Row],[Preis VK\ninkl. 19% MwSt.]]*Tabelle9[[#This Row],[Anzahl \nBestellung]]","v":0},38,"1.4 G","P1","https://www.youtube.com/watch?v=Z2K4GZMnpX8"]
[null,"Grüne Visco 30 s/m","Blackboxx",15,{"$f":"Tabelle9[[#This Row],[Preis VK\ninkl. 19% MwSt.]]*Tabelle9[[#This Row],[Anzahl \nBestellung]]","v":0},20,"1.4 G","P1","https://www.youtube.com/watch?v=Z2K4GZMnpX8"]
[null,"Grüne Visco 60 s/m","Blackboxx",15,{"$f":"Tabelle9[[#This Row],[Preis VK\ninkl. 19% MwSt.]]*Tabelle9[[#This Row],[Anzahl \nBestellung]]","v":0},20,"1.4 S","P1","https://www.youtube.com/watch?v=Z2K4GZMnpX8"]
[null,"Tapematch","Zink/Blackboxx",15,{"$f":"Tabelle9[[#This Row],[Preis VK\ninkl. 19% MwSt.]]*Tabelle9[[#This Row],[Anzahl \nBestellung]]","v":0},33,"1.4 S","P1","https://www.youtube.com/watch?v=Z2K4GZMnpX8"]
[null,null,null," Summe Anzündmittel: ",{"$f":"SUM(Tabelle9[Summe])","v":0}]
[]
["Batterie Feuerwerk"]
["Anzahl \nBestellung","Name","Hersteller","Preis VK\ninkl. 19% MwSt.","Summe ","NEM [g]","Lagergruppe","Kategorie","Video"]
[null,"Bängel","Blackboxx",20,{"$f":"Tabelle2[[#This Row],[Preis VK\ninkl. 19% MwSt.]]*Tabelle2[[#This Row],[Anzahl \nBestellung]]","v":0},344,"1.4 G","F2","https://www.youtube.com/watch?v=BbLuMNH9_s0"]
[null,"Bastard","Blackboxx",40,{"$f":"Tabelle2[[#This Row],[Preis VK\ninkl. 19% MwSt.]]*Tabelle2[[#This Row],[Anzahl \nBestellung]]","v":0},488,"1.4 G","F2","https://www.youtube.com/watch?v=dAYxpoE_Zfs"]
[null,"Blender","Blackboxx",45,{"$f":"Tabelle2[[#This Row],[Preis VK\ninkl. 19% MwSt.]]*Tabelle2[[#This Row],[Anzahl \nBestellung]]","v":0},490,"1.4 G","F2","https://www.youtube.com/watch?v=XzBt-wqpppQ"]
[null,"Boosterblume","Blackboxx",11,{"$f":"Tabelle2[[#This Row],[Preis VK\ninkl. 19% MwSt.]]*Tabelle2[[#This Row],[Anzahl \nBestellung]]","v":0},142,"1.4 G","F2","https://www.youtube.com/watch?v=D4e9ttdM-fA"]
[null,"Danger Ranger","Blackboxx",18,{"$f":"Tabelle2[[#This Row],[Preis VK\ninkl. 19% MwSt.]]*Tabelle2[[#This Row],[Anzahl \nBestellung]]","v":0},229,"1.4 G","F2","https://www.youtube.com/watch?v=sliZA84pHHs"]
[null,"Das Ding","Blackboxx",40,{"$f":"Tabelle2[[#This Row],[Preis VK\ninkl. 19% MwSt.]]*Tabelle2[[#This Row],[Anzahl \nBestellung]]","v":0},463,"1.4 G","F2","https://www.youtube.com/watch?v=r5-5zkofLBc"]
[null,"Deja Vu","Blackboxx",14,{"$f":"Tabelle2[[#This Row],[Preis VK\ninkl. 19% MwSt.]]*Tabelle2[[#This Row],[Anzahl \nBestellung]]","v":0},181,"1.4 G","F2","https://www.youtube.com/watch?v=WRi-sSZZgk0"]
[null,"Dock12","Blackboxx",12.5,{"$f":"Tabelle2[[#This Row],[Preis VK\ninkl. 19% MwSt.]]*Tabelle2[[#This Row],[Anzahl \nBestellung]]","v":0},132,"1.4 G","F2","https://www.youtube.com/watch?v=YcyQN8nKLSA"]
[null,"Eissphinx","Blackboxx",12.5,{"$f":"Tabelle2[[#This Row],[Preis VK\ninkl. 19% MwSt.]]*Tabelle2[[#This Row],[Anzahl \nBestellung]]","v":0},112,"1.4 G","F2","https://www.youtube.com/watch?v=aAKL26QVR-Q"]
[null,"Epsilon","Blackboxx",20,{"$f":"Tabelle2[[#This Row],[Preis VK\ninkl. 19% MwSt.]]*Tabelle2[[#This Row],[Anzahl \nBestellung]]","v":0},227,"1.4 G","F2","https://www.youtube.com/watch?v=tYq1jcn-ybY"]
[null,"Erzengel","Blackboxx",45,{"$f":"Tabelle2[[#This Row],[Preis VK\ninkl. 19% MwSt.]]*Tabelle2[[#This Row],[Anzahl \nBestellung]]","v":0},486,"1.4 G","F2","https://www.youtube.com/watch?v=sW_LXhttYlA"]
[null,"Freimaurer","Blackboxx",40,{"$f":"Tabelle2[[#This Row],[Preis VK\ninkl. 19% MwSt.]]*Tabelle2[[#This Row],[Anzahl \nBestellung]]","v":0},481,"1.4 G","F2","https://www.youtube.com/watch?v=bBaP4mAoI1M"]
[null,"Glamour","Blackboxx",30,{"$f":"Tabelle2[[#This Row],[Preis VK\ninkl. 19% MwSt.]]*Tabelle2[[#This Row],[Anzahl \nBestellung]]","v":0},341,"1.4 G","F2","https://www.youtube.com/watch?v=bq97UuLKyFU"]
[null,"Gloria Coloria","Blackboxx",25,{"$f":"Tabelle2[[#This Row],[Preis VK\ninkl. 19% MwSt.]]*Tabelle2[[#This Row],[Anzahl \nBestellung]]","v":0},341,"1.4 G","F2","https://www.youtube.com/watch?v=LX2_KMyMuyM"]
[null,"Graviton","Blackboxx",55,{"$f":"Tabelle2[[#This Row],[Preis VK\ninkl. 19% MwSt.]]*Tabelle2[[#This Row],[Anzahl \nBestellung]]","v":0},476,"1.4 G","F2","https://www.youtube.com/watch?v=FpJnJfDstCI"]
[null,"Heyloo","Blackboxx",15,{"$f":"Tabelle2[[#This Row],[Preis VK\ninkl. 19% MwSt.]]*Tabelle2[[#This Row],[Anzahl \nBestellung]]","v":0},227,"1.4 G","F2","https://www.youtube.com/watch?v=MGm1KPhEMhE"]
[null,"Hypnotica","Blackboxx",12.5,{"$f":"Tabelle2[[#This Row],[Preis VK\ninkl. 19% MwSt.]]*Tabelle2[[#This Row],[Anzahl \nBestellung]]","v":0},132,"1.4 G","F2","https://www.youtube.com/watch?v=Hxd41091a08"]
[null,"Knallbaer","Blackboxx",11,{"$f":"Tabelle2[[#This Row],[Preis VK\ninkl. 19% MwSt.]]*Tabelle2[[#This Row],[Anzahl \nBestellung]]","v":0},136,"1.4 G","F2","https://www.youtube.com/watch?v=iZf36GIiPBM"]
[null,"Lars vom Mars","Blackboxx",40,{"$f":"Tabelle2[[#This Row],[Preis VK\ninkl. 19% MwSt.]]*Tabelle2[[#This Row],[Anzahl \nBestellung]]","v":0},463,"1.4 G","F2","https://www.youtube.com/watch?v=AdmimRWmj64"]
[null,"Lila Lena","Blackboxx",38,{"$f":"Tabelle2[[#This Row],[Preis VK\ninkl. 19% MwSt.]]*Tabelle2[[#This Row],[Anzahl \nBestellung]]","v":0},463,"1.4 G","F2","https://www.youtube.com/watch?v=GnD1wsQRwjw"]
[null,"Nymphis","Blackboxx",20,{"$f":"Tabelle2[[#This Row],[Preis VK\ninkl. 19% MwSt.]]*Tabelle2[[#This Row],[Anzahl \nBestellung]]","v":0},227,"1.4 G","F2","https://www.youtube.com/watch?v=b2vOS0dgedM"]
[null,"Pyro Spektakel Level 2","Blackboxx",125,{"$f":"Tabelle2[[#This Row],[Preis VK\ninkl. 19% MwSt.]]*Tabelle2[[#This Row],[Anzahl \nBestellung]]","v":0},1228,"1.4 G","F2","https://www.youtube.com/watch?v=cpO5EP1GWpg"]
[null,"PyroSpektakel Level  4","BlackBoxx",195,{"$f":"Tabelle2[[#This Row],[Preis VK\ninkl. 19% MwSt.]]*Tabelle2[[#This Row],[Anzahl \nBestellung]]","v":0},1379,"1.4 G","F2","https://www.youtube.com/watch?v=fsPQaMuZkmA"]
[null,"Rokoko","Blackboxx",25,{"$f":"Tabelle2[[#This Row],[Preis VK\ninkl. 19% MwSt.]]*Tabelle2[[#This Row],[Anzahl \nBestellung]]","v":0},307,"1.4 G","F2","https://www.youtube.com/watch?v=tQdVhTSTFwc"]
[null,"Sauron","Blackboxx",20,{"$f":"Tabelle2[[#This Row],[Preis VK\ninkl. 19% MwSt.]]*Tabelle2[[#This Row],[Anzahl \nBestellung]]","v":0},280,"1.4 G","F2","https://www.youtube.com/watch?v=_EBnS3eSnLg"]
[null,"Schnuckelchen","Blackboxx",25,{"$f":"Tabelle2[[#This Row],[Preis VK\ninkl. 19% MwSt.]]*Tabelle2[[#This Row],[Anzahl \nBestellung]]","v":0},409,"1.4 G","F2","https://www.youtube.com/watch?v=EREyElH891k"]
[null,"Schwarze Witwe","Blackboxx",15,{"$f":"Tabelle2[[#This Row],[Preis VK\ninkl. 19% MwSt.]]*Tabelle2[[#This Row],[Anzahl \nBestellung]]","v":0},132,"1.4 G","F2","https://www.youtube.com/watch?v=tPPYkLp4vZo"]
[null,"Spectris","Blackboxx",45,{"$f":"Tabelle2[[#This Row],[Preis VK\ninkl. 19% MwSt.]]*Tabelle2[[#This Row],[Anzahl \nBestellung]]","v":0},355,"1.4 G","F2","https://www.youtube.com/watch?v=2aWktItfVXA"]
[null,"Süßes Gift","Blackboxx",25,{"$f":"Tabelle2[[#This Row],[Preis VK\ninkl. 19% MwSt.]]*Tabelle2[[#This Row],[Anzahl \nBestellung]]","v":0},253,"1.4 G","F2","https://www.youtube.com/watch?v=bRsXvKFQ92g"]
[null,"Symphonie","Blackboxx",11,{"$f":"Tabelle2[[#This Row],[Preis VK\ninkl. 19% MwSt.]]*Tabelle2[[#This Row],[Anzahl \nBestellung]]","v":0},142,"1.4 G","F2","https://www.youtube.com/watch?v=myqf0EA939M"]
[null,"Ultraviolet","Blackboxx",18,{"$f":"Tabelle2[[#This Row],[Preis VK\ninkl. 19% MwSt.]]*Tabelle2[[#This Row],[Anzahl \nBestellung]]","v":0},253,"1.4 G","F2","https://www.youtube.com/watch?v=VMeDaLvNO28"]
[null,"Venom","Blackboxx",20,{"$f":"Tabelle2[[#This Row],[Preis VK\ninkl. 19% MwSt.]]*Tabelle2[[#This Row],[Anzahl \nBestellung]]","v":0},241,"1.4 G","F2","https://www.youtube.com/watch?v=jlJMFWr0Dso"]
[null,"Violet Fantasy","Blackboxx",25,{"$f":"Tabelle2[[#This Row],[Preis VK\ninkl. 19% MwSt.]]*Tabelle2[[#This Row],[Anzahl \nBestellung]]","v":0},241,"1.4 G","F2","https://www.youtube.com/watch?v=aq5g387Tcoc"]
[null,"Vogelschreck Batterie","Blackboxx",10,{"$f":"Tabelle2[[#This Row],[Preis VK\ninkl. 19% MwSt.]]*Tabelle2[[#This Row],[Anzahl \nBestellung]]","v":0},42,"1.4 G","F2","https://www.youtube.com/watch?v=cOUIE3UvaRE"]
[null,"Wolke 7","Blackboxx",45,{"$f":"Tabelle2[[#This Row],[Preis VK\ninkl. 19% MwSt.]]*Tabelle2[[#This Row],[Anzahl \nBestellung]]","v":0},486,"1.4 G","F2","https://www.youtube.com/watch?v=Roc3oE6jFV4"]
[null,null,null," Summe Batterie Feuerwerk: ",{"$f":"SUM(Tabelle2[[Summe ]])","v":0}]
[]
["Bengalisches Licht"]
["Anzahl \nBestellung","Name","Hersteller","Preis VK\ninkl. 19% MwSt.","Summe ","NEM [g]","Lagergruppe","Kategorie","Video"]
[null,"Bengaltopf XXL Blau","Blackboxx",6,{"$f":"Tabelle3[[#This Row],[Preis VK\ninkl. 19% MwSt.]]*Tabelle3[[#This Row],[Anzahl \nBestellung]]","v":0},102,"1.4 S","T1","https://www.youtube.com/watch?v=Bl0HS5lA2Bo"]
[null,"Bengaltopf XXL gelb","Blackboxx",6,{"$f":"Tabelle3[[#This Row],[Preis VK\ninkl. 19% MwSt.]]*Tabelle3[[#This Row],[Anzahl \nBestellung]]","v":0},72,"1.4 S","T1","https://www.youtube.com/watch?v=oLGtMUhAoNE"]
[null,"Bengaltopf XXL grün","BlackBoxx",6,{"$f":"Tabelle3[[#This Row],[Preis VK\ninkl. 19% MwSt.]]*Tabelle3[[#This Row],[Anzahl \nBestellung]]","v":0},97,"1.4 S","T1","https://www.youtube.com/watch?v=SX_dNNr5Oqk"]
[null,"Bengaltopf XXL Purpur","Blackboxx",6,{"$f":"Tabelle3[[#This Row],[Preis VK\ninkl. 19% MwSt.]]*Tabelle3[[#This Row],[Anzahl \nBestellung]]","v":0},67,"1.4 S","T1","https://www.youtube.com/watch?v=xfdQ1xAN6hc"]
[null,"Bengaltopf XXL Rot","Blackboxx",6,{"$f":"Tabelle3[[#This Row],[Preis VK\ninkl. 19% MwSt.]]*Tabelle3[[#This Row],[Anzahl \nBestellung]]","v":0},80,"1.4 S","T1","https://www.youtube.com/watch?v=lUmT_cBAR4g"]
[null,"Lanzenlichter Gelb / 25 Stück","Blackboxx",12.5,{"$f":"Tabelle3[[#This Row],[Preis VK\ninkl. 19% MwSt.]]*Tabelle3[[#This Row],[Anzahl \nBestellung]]","v":0},175,"1.4 S","T1","https://www.youtube.com/watch?v=El8zrjEh0gs"]
[null,"Lanzenlichter Rot / 25 Stück","Blackboxx",12.5,{"$f":"Tabelle3[[#This Row],[Preis VK\ninkl. 19% MwSt.]]*Tabelle3[[#This Row],[Anzahl \nBestellung]]","v":0},190,"1.4 S","T1","https://www.youtube.com/watch?v=XQ66MW4urHU"]
[null,"Ultralux Gelb","BlackBoxx",7,{"$f":"Tabelle3[[#This Row],[Preis VK\ninkl. 19% MwSt.]]*Tabelle3[[#This Row],[Anzahl \nBestellung]]","v":0},313,"1.4 S","T1","https://www.youtube.com/watch?v=ZuUginRMRZ0"]
[null,"Ultralux Rot","BlackBoxx",7,{"$f":"Tabelle3[[#This Row],[Preis VK\ninkl. 19% MwSt.]]*Tabelle3[[#This Row],[Anzahl \nBestellung]]","v":0},175,"1.4 S","T1","https://www.youtube.com/watch?v=PCo5JtONr_0"]
[null,null,null," Summe Bengalisches Licht: ",{"$f":"SUM(Tabelle3[[Summe ]])","v":0}]
[]
[]
["Knall Effekte"]
["Anzahl \nBestellung","Name","Hersteller","Preis VK\ninkl. 19% MwSt.","Summe","NEM [g]","Lagergruppe","Kategorie","Video"]
[null,"Bellabomba / 10 Stück","Blackboxx",5,{"$f":"Tabelle5[[#This Row],[Preis VK\ninkl. 19% MwSt.]]*Tabelle5[[#This Row],[Anzahl \nBestellung]]","v":0},15,"1.4 S","F2","https://www.youtube.com/watch?v=FdXYyEC1c2Q"]
[null,"Knallfrösche C","Funke",2.5,{"$f":"Tabelle5[[#This Row],[Preis VK\ninkl. 19% MwSt.]]*Tabelle5[[#This Row],[Anzahl \nBestellung]]","v":0},10,"1.4 G","F2"]
[null,"Knallfrösche D","Funke",4,{"$f":"Tabelle5[[#This Row],[Preis VK\ninkl. 19% MwSt.]]*Tabelle5[[#This Row],[Anzahl \nBestellung]]","v":0},14,"1.4 G","F2"]
[null,"Vaporizer / 10 Stück","Blackboxx",10,{"$f":"Tabelle5[[#This Row],[Preis VK\ninkl. 19% MwSt.]]*Tabelle5[[#This Row],[Anzahl \nBestellung]]","v":0},25,"1.4 S","F2","https://www.youtube.com/watch?v=mnl6TRSBniI"]
[null,"Vogelschreck Doppelschlag / 6 Stück","Blackboxx",8,{"$f":"Tabelle5[[#This Row],[Preis VK\ninkl. 19% MwSt.]]*Tabelle5[[#This Row],[Anzahl \nBestellung]]","v":0},12,"1.4 G","F2","https://www.youtube.com/watch?v=ASQX1ao9eks"]
[null,null,null,"  Summe Knall Effekte:  ",{"$f":"SUM(Tabelle5[Summe])","v":0}]
[]
["Rauch Effekte"]
["Anzahl \nBestellung","Name","Hersteller","Preis VK\ninkl. 19% MwSt.","Summe","NEM [g]","Lagergruppe","Kategorie","Video"]
[null,"Rauchfackel Blau / 5 Stück","Blackboxx",11,{"$f":"Tabelle6[[#This Row],[Preis VK\ninkl. 19% MwSt.]]*Tabelle6[[#This Row],[Anzahl \nBestellung]]","v":0},25,"1.4 S","T1","https://www.youtube.com/watch?v=GE3_Svj-Ink"]
[null,"Rauchfackel Gelb / 5 Stück","Blackboxx",11,{"$f":"Tabelle6[[#This Row],[Preis VK\ninkl. 19% MwSt.]]*Tabelle6[[#This Row],[Anzahl \nBestellung]]","v":0},20,"1.4 S","T1","https://www.youtube.com/watch?v=Dd5iDmkqCeY"]
[null,"Rauchfackel Grün / 5 Stück","Blackboxx",11,{"$f":"Tabelle6[[#This Row],[Preis VK\ninkl. 19% MwSt.]]*Tabelle6[[#This Row],[Anzahl \nBestellung]]","v":0},25,"1.4 S","T1","https://www.youtube.com/watch?v=6UijW_ewyB8"]
[null,"Rauchfackel Orange / 5 Stück","Blackboxx",11,{"$f":"Tabelle6[[#This Row],[Preis VK\ninkl. 19% MwSt.]]*Tabelle6[[#This Row],[Anzahl \nBestellung]]","v":0},16,"1.4 S","T1","https://www.youtube.com/watch?v=ObfMXjRJpGQ"]
[null,"Rauchfackel Purpur / 5 Stück","Blackboxx",11,{"$f":"Tabelle6[[#This Row],[Preis VK\ninkl. 19% MwSt.]]*Tabelle6[[#This Row],[Anzahl \nBestellung]]","v":0},16,"1.4 S","T1","https://www.youtube.com/watch?v=zlivPS2p358"]
[null,"Rauchfackel Rot / 5 Stück","Blackboxx",11,{"$f":"Tabelle6[[#This Row],[Preis VK\ninkl. 19% MwSt.]]*Tabelle6[[#This Row],[Anzahl \nBestellung]]","v":0},16,"1.4 S","T1","https://www.youtube.com/watch?v=EFc_FME2RJg"]
[null,"Rauchfackel Schwarz / 5 Stück","Blackboxx",11,{"$f":"Tabelle6[[#This Row],[Preis VK\ninkl. 19% MwSt.]]*Tabelle6[[#This Row],[Anzahl \nBestellung]]","v":0},22,"1.4 S","T1","https://www.youtube.com/watch?v=a-5S0GXkn_I"]
[null,"Rauchfackel Weiss / 5 Stück","Blackboxx",11,{"$f":"Tabelle6[[#This Row],[Preis VK\ninkl. 19% MwSt.]]*Tabelle6[[#This Row],[Anzahl \nBestellung]]","v":0},23,"1.4 S","T1","https://www.youtube.com/watch?v=mXipOXXL9E8"]
[null,"Ultra Rauchtopf Blau","Blackboxx",8,{"$f":"Tabelle6[[#This Row],[Preis VK\ninkl. 19% MwSt.]]*Tabelle6[[#This Row],[Anzahl \nBestellung]]","v":0},20,"1.4 S","T1","https://www.youtube.com/watch?v=qnxnhg4MGrU"]
[null,"Ultra Rauchtopf Gelb","Blackboxx",8,{"$f":"Tabelle6[[#This Row],[Preis VK\ninkl. 19% MwSt.]]*Tabelle6[[#This Row],[Anzahl \nBestellung]]","v":0},20,"1.4 S","T1","https://www.youtube.com/watch?v=FqWal9PXnQk"]
[null,"Ultra Rauchtopf Grün","Blackboxx",8,{"$f":"Tabelle6[[#This Row],[Preis VK\ninkl. 19% MwSt.]]*Tabelle6[[#This Row],[Anzahl \nBestellung]]","v":0},20,"1.4 S","T1","https://www.youtube.com/watch?v=WWz03QIsqU0"]
[null,"Ultra Rauchtopf Orange","Blackboxx",8,{"$f":"Tabelle6[[#This Row],[Preis VK\ninkl. 19% MwSt.]]*Tabelle6[[#This Row],[Anzahl \nBestellung]]","v":0},20,"1.4 S","T1","https://www.youtube.com/watch?v=r6CHMCRamCQ"]
[null,"Ultra Rauchtopf Purpur","Blackboxx",8,{"$f":"Tabelle6[[#This Row],[Preis VK\ninkl. 19% MwSt.]]*Tabelle6[[#This Row],[Anzahl \nBestellung]]","v":0},20,"1.4 S","T1","https://www.youtube.com/watch?v=r2QRN2fRyKs"]
[null,"Ultra Rauchtopf Rot","Blackboxx",8,{"$f":"Tabelle6[[#This Row],[Preis VK\ninkl. 19% MwSt.]]*Tabelle6[[#This Row],[Anzahl \nBestellung]]","v":0},20,"1.4 S","T1","https://www.youtube.com/watch?v=m4WsAA6C4p0"]
[null,"Ultra Rauchtopf Schwarz","Blackboxx",8,{"$f":"Tabelle6[[#This Row],[Preis VK\ninkl. 19% MwSt.]]*Tabelle6[[#This Row],[Anzahl \nBestellung]]","v":0},20,"1.4 S","T1","https://www.youtube.com/watch?v=dntfSTe3fSg"]
[null,"Ultra Rauchtopf Weiss","Blackboxx",8,{"$f":"Tabelle6[[#This Row],[Preis VK\ninkl. 19% MwSt.]]*Tabelle6[[#This Row],[Anzahl \nBestellung]]","v":0},20,"1.4 S","T1","https://www.youtube.com/watch?v=Cmx4fwog7iE"]
[null,null,null,"  Summe Rauch Effekte:  ",{"$f":"SUM(Tabelle6[Summe])","v":0}]
[]
["Vulkane & Fontänen"]
["Anzahl \nBestellung","Name","Hersteller","Preis VK\ninkl. 19% MwSt.","Summe ","NEM [g]","Lagergruppe","Kategorie","Video"]
[null,"Azzurro","Zink",14,{"$f":"Tabelle7[[#This Row],[Preis VK\ninkl. 19% MwSt.]]*Tabelle7[[#This Row],[Anzahl \nBestellung]]","v":0},400,"1.4 G","F3 Nur mit Erlaubnis","https://www.youtube.com/watch?v=_LPuYZxVKNI"]
[null,"Feuersaeule No.1","Blackboxx",6.5,{"$f":"Tabelle7[[#This Row],[Preis VK\ninkl. 19% MwSt.]]*Tabelle7[[#This Row],[Anzahl \nBestellung]]","v":0},68,"1.4 S","T1","https://www.youtube.com/watch?v=eW7TvlnaS9M"]
[null,"Glanzpunkt 6 Stück","PyroArt",5,{"$f":"Tabelle7[[#This Row],[Preis VK\ninkl. 19% MwSt.]]*Tabelle7[[#This Row],[Anzahl \nBestellung]]","v":0},12,"1.4 G","F1","https://www.youtube.com/watch?v=FpQncdj5rYY"]
[null,"Magic Light","Zink",14,{"$f":"Tabelle7[[#This Row],[Preis VK\ninkl. 19% MwSt.]]*Tabelle7[[#This Row],[Anzahl \nBestellung]]","v":0},400,"1.4 G","F3 Nur mit Erlaubnis","https://www.youtube.com/watch?v=TkCNxxdSzWw"]
[null,"Metal Pink Gr 7","Zink",22,{"$f":"Tabelle7[[#This Row],[Preis VK\ninkl. 19% MwSt.]]*Tabelle7[[#This Row],[Anzahl \nBestellung]]","v":0},520,"1.4 G","F3 Nur mit Erlaubnis","https://www.youtube.com/watch?v=txLO5X7rJ8I"]
[null,"No 7 - Goldfunken","Zink",12,{"$f":"Tabelle7[[#This Row],[Preis VK\ninkl. 19% MwSt.]]*Tabelle7[[#This Row],[Anzahl \nBestellung]]","v":0},250,"1.4 G","F2","https://www.youtube.com/watch?v=MFdoQXDKvSY"]
[null,"Vulkan No 3 - Gold Colorsterne","Zink",12,{"$f":"Tabelle7[[#This Row],[Preis VK\ninkl. 19% MwSt.]]*Tabelle7[[#This Row],[Anzahl \nBestellung]]","v":0},250,"1.4 G","F2","https://www.youtube.com/watch?v=MejWEsROlDs"]
[null,null,null," Summe Vulkane & Fontänen: ",{"$f":"SUM(Tabelle7[[Summe ]])","v":0}]
[]
["Sonstiges"]
["Anzahl \nBestellung","Name","Hersteller","Preis VK\ninkl. 19% MwSt.","Summe","NEM [g]","Lagergruppe","Kategorie","Video"]
[null,"Bombenraketen","Blackboxx",25,{"$f":"Tabelle8[[#This Row],[Preis VK\ninkl. 19% MwSt.]]*Tabelle8[[#This Row],[Anzahl \nBestellung]]","v":0},135,"1.4 G","F2","https://www.youtube.com/watch?v=h4BSTdMaTKU"]
[null,"Feuerteufel","Blackboxx",2,{"$f":"Tabelle8[[#This Row],[Preis VK\ninkl. 19% MwSt.]]*Tabelle8[[#This Row],[Anzahl \nBestellung]]","v":0},11,"1.4 G","F2","https://www.youtube.com/watch?v=eXuO75Fow3Q"]
[null,"Goldsternschmeißer Größe 2 / 10 Stück","Blackboxx",1.5,{"$f":"Tabelle8[[#This Row],[Preis VK\ninkl. 19% MwSt.]]*Tabelle8[[#This Row],[Anzahl \nBestellung]]","v":0},25,"1.4 S","F2","https://www.youtube.com/watch?v=EIbRRzmHChM"]
[null,"Goldsternschmeißer Größe 3 / 6 Stück","Blackboxx",4,{"$f":"Tabelle8[[#This Row],[Preis VK\ninkl. 19% MwSt.]]*Tabelle8[[#This Row],[Anzahl \nBestellung]]","v":0},48,"1.4 S","F2","https://www.youtube.com/watch?v=w9U_yfXRfYk"]
[null,"Knallerbsen","Nico",1.5,{"$f":"Tabelle8[[#This Row],[Preis VK\ninkl. 19% MwSt.]]*Tabelle8[[#This Row],[Anzahl \nBestellung]]","v":0},null,"1.4 S","F1"]
[null,"Konfetti Shooter bunt",null,5,{"$f":"Tabelle8[[#This Row],[Preis VK\ninkl. 19% MwSt.]]*Tabelle8[[#This Row],[Anzahl \nBestellung]]","v":0},null,"-","-"]
[null,"Luftheuler","Funke",3,{"$f":"Tabelle8[[#This Row],[Preis VK\ninkl. 19% MwSt.]]*Tabelle8[[#This Row],[Anzahl \nBestellung]]","v":0},15,"1.4 G","F2"]
[null,"Pyrodrohne","Blackboxx",5,{"$f":"Tabelle8[[#This Row],[Preis VK\ninkl. 19% MwSt.]]*Tabelle8[[#This Row],[Anzahl \nBestellung]]","v":0},26,"1.4 G","F2","https://www.youtube.com/watch?v=5-XY4Enh4Qw"]
[null,"Silberheuler","Funke",3,{"$f":"Tabelle8[[#This Row],[Preis VK\ninkl. 19% MwSt.]]*Tabelle8[[#This Row],[Anzahl \nBestellung]]","v":0},15,"1.4 G","F2"]
[null,"Tornadowirbel / 4 Stück","Funke",8,{"$f":"Tabelle8[[#This Row],[Preis VK\ninkl. 19% MwSt.]]*Tabelle8[[#This Row],[Anzahl \nBestellung]]","v":0},42,"1.4 G","F2","https://www.youtube.com/watch?v=xzw-oKGqHSA"]
[null,null,null," Summe Sonstiges: ",{"$f":"SUM(Tabelle8[Summe])","v":0}]
[]
[null,null,null,"Bestellsumme gesamt:",{"$f":"Tabelle8[[#Totals],[Summe]]+Tabelle7[[#Totals],[Summe ]]+Tabelle6[[#Totals],[Summe]]+Tabelle5[[#Totals],[Summe]]+Tabelle3[[#Totals],[Summe ]]+Tabelle2[[#Totals],[Summe ]]+Tabelle9[[#Totals],[Summe]]","v":0},"inkl. 19% MwSt."]